[Event "18èmeFestival International d’Echecsde Rochefort"]
[Site "Rochefort, France"]
[Date "2019.02.17"]
[Round "3.5"]
[White "MU, Ke"]
[Black "SAHIL, Tickoo"]
[Result "1-0"]
[TimeControl "1h30 min/40coups + 30 min +  30sec/coup"]
[WhiteFideId "8602778"]
[BlackFideId "5019710"]
[WhiteElo "2404"]
[BlackElo "2271"]

1. c4 {[%clk 01:20:49]} {[%emt 00:10:07]} e6 {[%clk 01:30:49]} {[%emt
00:00:14]} 2. d4 {[%clk 01:21:01]} {[%emt 00:00:18]} Nf6 {[%clk 01:30:56]}
{[%emt 00:00:23]} 3. Nc3 {[%clk 01:21:25]} {[%emt 00:00:06]} d5 {[%clk
01:31:19]} {[%emt 00:00:06]} 4. Nf3 {[%clk 01:21:26]} {[%emt 00:00:30]} Be7
{[%clk 01:31:30]} {[%emt 00:00:19]} 5. Bg5 {[%clk 01:21:33]} {[%emt 00:00:22]}
h6 {[%clk 01:31:48]} {[%emt 00:00:13]} 6. Bxf6 {[%clk 01:21:46]} {[%emt
00:00:17]} Bxf6 {[%clk 01:32:12]} {[%emt 00:00:06]} 7. e3 {[%clk 01:22:14]}
{[%emt 00:00:02]} O-O {[%clk 01:30:43]} {[%emt 00:01:59]} 8. Qc2 {[%clk
01:21:42]} {[%emt 00:01:01]} b6 {[%clk 01:18:32]} {[%emt 00:12:42]} 9. O-O-O
{[%clk 01:20:07]} {[%emt 00:02:05]} Bb7 {[%clk 01:14:25]} {[%emt 00:04:38]} 10.
cxd5 {[%clk 01:19:07]} {[%emt 00:01:30]} exd5 {[%clk 01:14:50]} {[%emt
00:00:05]} 11. h4 {[%clk 01:19:32]} {[%emt 00:00:05]} c5 {[%clk 00:59:33]}
{[%emt 00:15:47]} 12. dxc5 {[%clk 01:13:10]} {[%emt 00:06:52]} Bxc3 {[%clk
00:58:38]} {[%emt 00:01:25]} 13. Qxc3 {[%clk 01:13:10]} {[%emt 00:00:30]} Nd7
{[%clk 00:58:31]} {[%emt 00:00:36]} 14. c6 {[%clk 01:13:37]} {[%emt 00:00:03]}
Bxc6 {[%clk 00:51:04]} {[%emt 00:07:58]} 15. Kb1 {[%clk 01:13:25]} {[%emt
00:00:42]} Rc8 {[%clk 00:45:56]} {[%emt 00:05:38]} 16. Qd4 {[%clk 01:13:44]}
{[%emt 00:00:11]} Bb7 {[%clk 00:36:35]} {[%emt 00:09:51]} 17. Bd3 {[%clk
01:12:12]} {[%emt 00:02:02]} Qf6 {[%clk 00:34:59]} {[%emt 00:02:07]} 18. Rc1
{[%clk 01:10:18]} {[%emt 00:02:23]} a5 {[%clk 00:20:44]} {[%emt 00:14:45]} 19.
h5 {[%clk 00:56:01]} {[%emt 00:14:47]} Qxd4 {[%clk 00:17:58]} {[%emt 00:03:16]}
20. Nxd4 {[%clk 00:56:13]} {[%emt 00:00:17]} Nc5 {[%clk 00:12:50]} {[%emt
00:05:38]} 21. Bf5 {[%clk 00:56:03]} {[%emt 00:00:39]} Rce8 {[%clk 00:13:04]}
{[%emt 00:00:16]} 22. b3 {[%clk 00:52:30]} {[%emt 00:04:03]} Re7 {[%clk
00:09:29]} {[%emt 00:04:06]} 23. Rh4 {[%clk 00:48:46]} {[%emt 00:04:14]} Ne6
{[%clk 00:06:17]} {[%emt 00:03:42]} 24. Rg4 {[%clk 00:46:47]} {[%emt 00:02:28]}
Nxd4 {[%clk 00:05:49]} {[%emt 00:00:58]} 25. Rxd4 {[%clk 00:47:13]} {[%emt
00:00:04]} g6 {[%clk 00:02:35]} {[%emt 00:03:45]} 26. Bg4 {[%clk 00:44:44]}
{[%emt 00:02:59]} Rd8 {[%clk 00:00:58]} {[%emt 00:02:06]} 27. Rcd1 {[%clk
00:44:52]} {[%emt 00:00:21]} Kg7 {[%clk 00:00:40]} {[%emt 00:00:49]} 28. Bf3
{[%clk 00:42:12]} {[%emt 00:03:10]} Red7 {[%clk 00:00:44]} {[%emt 00:00:27]} 29.
hxg6 {[%clk 00:37:32]} {[%emt 00:05:10]} fxg6 {[%clk 00:01:13]} 30. e4 {[%clk
00:37:56]} {[%emt 00:00:06]} Rd6 {[%clk 00:00:48]} {[%emt 00:00:56]} 31. exd5
{[%clk 00:36:42]} {[%emt 00:01:43]} h5 {[%clk 00:00:37]} {[%emt 00:00:41]} 32.
Kb2 {[%clk 00:37:07]} {[%emt 00:00:05]} R8d7 {[%clk 00:00:48]} {[%emt
00:00:19]} 33. Be4 {[%clk 00:37:09]} {[%emt 00:00:28]} Kf6 {[%clk 00:00:39]}
{[%emt 00:00:39]} 34. f4 {[%clk 00:37:34]} {[%emt 00:00:05]} g5 {[%clk
00:00:34]} {[%emt 00:00:36]} 35. fxg5+ {[%clk 00:38:00]} {[%emt 00:00:04]} Kxg5
{[%clk 00:00:56]} {[%emt 00:00:08]} 36. Bf3 {[%clk 00:38:28]} {[%emt 00:00:02]}
Rh7 {[%clk 00:00:32]} {[%emt 00:00:54]} 37. Re1 {[%clk 00:36:38]} {[%emt
00:02:20]} h4 {[%clk 00:00:32]} {[%emt 00:00:31]} 38. Rh1 {[%clk 00:33:48]}
{[%emt 00:03:19]} Bc8 {[%clk 00:00:45]} {[%emt 00:00:18]} 39. Rc4 {[%clk
00:33:10]} {[%emt 00:01:08]} Bf5 {[%clk 00:00:39]} {[%emt 00:00:37]} 40. Rc6
{[%clk 00:32:22]} {[%emt 00:01:18]} Rhd7 {[%clk 00:00:36]} {[%emt 00:00:33]} 41.
Rxd6 {[%clk 00:32:44]} {[%emt 00:00:09]} Rxd6 {[%clk 00:01:04]} {[%emt
00:00:02]} 42. Kc3 {[%clk 00:33:07]} {[%emt 00:00:06]} Rh6 {[%clk 00:15:24]}
{[%emt 00:16:10]} 43. Kd4 {[%clk 01:02:14]} {[%emt 00:01:23]} Kf6 {[%clk
00:12:29]} {[%emt 00:03:25]} 44. Rc1 {[%clk 01:02:11]} {[%emt 00:00:33]} Ke7
{[%clk 00:12:15]} {[%emt 00:00:44]} 45. Ke5 {[%clk 01:01:48]} {[%emt 00:00:53]}
Bd7 {[%clk 00:12:31]} {[%emt 00:00:14]} 46. Rc7 {[%clk 01:02:13]} {[%emt
00:00:05]} Kd8 {[%clk 00:12:31]} {[%emt 00:00:30]} 47. Ra7 {[%clk 01:02:24]}
{[%emt 00:00:19]} h3 {[%clk 00:08:13]} {[%emt 00:04:48]} 48. gxh3 {[%clk
01:02:38]} {[%emt 00:00:16]} Bxh3 {[%clk 00:08:34]} {[%emt 00:00:09]} 49. d6
{[%clk 01:02:08]} {[%emt 00:00:59]} Re6+ {[%clk 00:07:28]} {[%emt 00:01:36]} 50.
Kd5 {[%clk 01:02:33]} {[%emt 00:00:05]} Re3 {[%clk 00:05:19]} {[%emt 00:02:40]}
51. Be4 {[%clk 01:01:05]} {[%emt 00:01:58]} Rc3 {[%clk 00:05:18]} {[%emt
00:00:31]} 52. Kd4 {[%clk 01:01:13]} {[%emt 00:00:22]} Rc1 {[%clk 00:02:31]}
{[%emt 00:03:18]} 53. Rb7 {[%clk 00:57:56]} {[%emt 00:03:47]} a4 {[%clk
00:00:35]} {[%emt 00:02:26]} 54. bxa4 {[%clk 00:58:18]} {[%emt 00:00:08]} Be6
{[%clk 00:00:38]} {[%emt 00:00:27]} 55. Ke5 {[%clk 00:58:33]} {[%emt 00:00:15]}
Bxa2 {[%clk 00:00:31]} {[%emt 00:00:37]} 56. Bf5 {[%clk 00:58:40]} {[%emt
00:00:23]} Rc5+ {[%clk 00:00:38]} {[%emt 00:00:24]} 57. Kf6 {[%clk 00:58:54]}
{[%emt 00:00:16]} 1-0

[Event "18èmeFestival International d’Echecsde Rochefort"]
[Site "Rochefort, France"]
[Date "2019.02.17"]
[Round "3.2"]
[White "SAADA, Julien"]
[Black "DEMUTH, Adrien"]
[Result "1/2-1/2"]
[TimeControl "1h30 min/40coups + 30 min +  30sec/coup"]
[WhiteTitle "FM"]
[BlackTitle "GM"]
[WhiteFideId "625388"]
[BlackFideId "642274"]
[WhiteElo "2281"]
[BlackElo "2519"]

1. d4 {[%clk 01:30:57]} {[%emt 00:00:02]} e6 {[%clk 01:30:56]} {[%emt
00:00:05]} 2. Nf3 {[%clk 01:30:49]} {[%emt 00:00:37]} Nf6 {[%clk 01:31:20]}
{[%emt 00:00:06]} 3. e3 {[%clk 01:28:54]} {[%emt 00:02:25]} b6 {[%clk
01:31:23]} {[%emt 00:00:28]} 4. Bd3 {[%clk 01:29:09]} {[%emt 00:00:14]} Bb7
{[%clk 01:31:49]} {[%emt 00:00:05]} 5. O-O {[%clk 01:29:15]} {[%emt 00:00:23]}
c5 {[%clk 01:31:40]} {[%emt 00:00:40]} 6. Re1 {[%clk 01:23:29]} {[%emt
00:06:15]} Nc6 {[%clk 01:28:36]} {[%emt 00:03:35]} 7. c3 {[%clk 01:18:33]}
{[%emt 00:05:26]} d5 {[%clk 01:28:11]} {[%emt 00:00:56]} 8. Nbd2 {[%clk
01:17:46]} {[%emt 00:01:17]} Be7 {[%clk 01:17:04]} {[%emt 00:11:37]} 9. b3
{[%clk 01:05:46]} {[%emt 00:12:29]} O-O {[%clk 01:14:39]} {[%emt 00:02:55]} 10.
Bb2 {[%clk 01:04:44]} {[%emt 00:01:31]} Qc7 {[%clk 00:58:42]} {[%emt 00:16:29]}
11. Rc1 {[%clk 00:57:53]} {[%emt 00:07:19]} e5 {[%clk 00:54:57]} {[%emt
00:04:17]} 12. e4 {[%emt 00:30:00]} exd4 {[%emt 00:00:02]} 13. cxd4 {[%emt
00:00:39]} Nb4 {[%emt 00:00:16]} 1/2-1/2

[Event "18èmeFestival International d’Echecsde Rochefort"]
[Site "Rochefort, France"]
[Date "2019.02.17"]
[Round "3.4"]
[White "GASCON DEL NOGAL, Jose Rafael"]
[Black "VIDAL, Llewellyn"]
[Result "1-0"]
[TimeControl "1h30 min/40coups + 30 min +  30sec/coup"]
[WhiteTitle "GM"]
[BlackTitle "FM"]
[WhiteFideId "3902463"]
[WhiteElo "2457"]
[BlackElo "2280"]

1. d4 {[%clk 01:21:09]} {[%emt 00:09:50]} d5 {[%clk 01:30:54]} {[%emt
00:00:07]} 2. c4 {[%clk 01:21:29]} {[%emt 00:00:10]} e6 {[%clk 01:31:20]}
{[%emt 00:00:04]} 3. Nf3 {[%clk 01:21:28]} {[%emt 00:00:30]} Nf6 {[%clk
01:31:44]} {[%emt 00:00:05]} 4. e3 {[%clk 01:19:49]} {[%emt 00:02:10]} Nbd7
{[%clk 01:28:33]} {[%emt 00:03:41]} 5. Nc3 {[%clk 01:19:20]} {[%emt 00:00:58]}
a6 {[%clk 01:28:35]} {[%emt 00:00:29]} 6. c5 {[%clk 01:19:06]} {[%emt
00:00:43]} c6 {[%clk 01:27:53]} {[%emt 00:01:13]} 7. b4 {[%clk 01:18:41]}
{[%emt 00:00:55]} g6 {[%clk 01:24:54]} {[%emt 00:03:29]} 8. Be2 {[%clk
01:18:23]} {[%emt 00:00:47]} Bg7 {[%clk 01:25:17]} {[%emt 00:00:07]} 9. Bb2
{[%clk 01:18:37]} {[%emt 00:00:15]} Qe7 {[%clk 01:22:59]} {[%emt 00:02:49]} 10.
Qc2 {[%clk 01:18:50]} {[%emt 00:00:17]} O-O {[%clk 01:22:07]} {[%emt 00:01:23]}
11. Rd1 {[%clk 01:16:22]} {[%emt 00:02:57]} Ng4 {[%clk 01:17:02]} {[%emt
00:05:36]} 12. e4 {[%clk 01:14:33]} {[%emt 00:02:19]} dxe4 {[%clk 01:13:32]}
{[%emt 00:04:01]} 13. Nxe4 {[%clk 01:14:56]} {[%emt 00:00:06]} e5 {[%clk
01:04:29]} {[%emt 00:09:33]} 14. h3 {[%clk 01:14:43]} {[%emt 00:00:42]} Ngf6
{[%clk 00:59:52]} {[%emt 00:05:07]} 15. Nd6 {[%clk 01:09:17]} {[%emt 00:05:56]}
Nd5 {[%clk 00:55:51]} {[%emt 00:04:32]} 16. a3 {[%clk 01:09:10]} {[%emt
00:00:37]} exd4 {[%clk 00:55:56]} {[%emt 00:00:25]} 17. O-O {[%clk 01:09:09]}
{[%emt 00:00:31]} Ne5 {[%clk 00:49:49]} {[%emt 00:06:37]} 18. Bxd4 {[%clk
01:09:01]} {[%emt 00:00:38]} Nf4 {[%clk 00:41:43]} {[%emt 00:08:36]} 19. Rfe1
{[%clk 01:08:24]} {[%emt 00:01:06]} Nxf3+ {[%clk 00:39:44]} {[%emt 00:02:30]}
20. Bxf3 {[%clk 01:08:47]} {[%emt 00:00:06]} Qg5 {[%clk 00:40:04]} {[%emt
00:00:10]} 21. Bxg7 {[%clk 01:04:47]} {[%emt 00:04:30]} Kxg7 {[%clk 00:40:15]}
{[%emt 00:00:20]} 22. Qc3+ {[%clk 01:04:46]} {[%emt 00:00:30]} Qf6 {[%clk
00:40:23]} {[%emt 00:00:22]} 23. Ne8+ {[%clk 01:05:04]} {[%emt 00:00:12]} 1-0

[Event "18èmeFestival International d’Echecsde Rochefort"]
[Site "Rochefort, France"]
[Date "2019.02.17"]
[Round "3.3"]
[White "DELORME, Axel"]
[Black "SOLOZHENKINA, Elizaveta"]
[Result "1/2-1/2"]
[TimeControl "1h30 min/40coups + 30 min +  30sec/coup"]
[WhiteTitle "GM"]
[BlackTitle "WIM"]
[WhiteFideId "632023"]
[BlackFideId "34106615"]
[WhiteElo "2498"]
[BlackElo "2287"]

1. Nf3 {[%clk 01:30:57]} {[%emt 00:00:02]} Nf6 {[%clk 01:30:53]} {[%emt
00:00:08]} 2. g3 {[%clk 01:31:22]} {[%emt 00:00:05]} g6 {[%clk 01:31:09]}
{[%emt 00:00:14]} 3. Bg2 {[%clk 01:31:26]} {[%emt 00:00:26]} Bg7 {[%clk
01:31:29]} {[%emt 00:00:09]} 4. O-O {[%clk 01:31:12]} {[%emt 00:00:44]} O-O
{[%clk 01:31:21]} {[%emt 00:00:38]} 5. c4 {[%clk 01:31:27]} {[%emt 00:00:15]}
c6 {[%clk 01:31:43]} {[%emt 00:00:08]} 6. d4 {[%clk 01:31:44]} {[%emt
00:00:12]} d5 {[%clk 01:32:06]} {[%emt 00:00:07]} 7. Qb3 {[%clk 01:32:11]}
{[%emt 00:00:03]} Qb6 {[%clk 01:30:16]} {[%emt 00:02:21]} 8. Nc3 {[%clk
01:32:35]} {[%emt 00:00:06]} Rd8 {[%clk 01:23:19]} {[%emt 00:07:27]} 9. Bd2
{[%clk 01:30:56]} {[%emt 00:02:09]} dxc4 {[%clk 01:17:51]} {[%emt 00:05:59]} 10.
Qxc4 {[%clk 01:28:27]} {[%emt 00:02:58]} Be6 {[%clk 01:14:46]} {[%emt
00:03:34]} 11. Qa4 {[%clk 01:25:07]} {[%emt 00:03:51]} Na6 {[%clk 01:12:47]}
{[%emt 00:02:30]} 12. Qa3 {[%clk 01:15:43]} {[%emt 00:09:53]} Bf8 {[%clk
01:01:15]} {[%emt 00:12:01]} 13. e3 {[%clk 00:54:37]} {[%emt 00:21:36]} Qb4
{[%clk 00:44:40]} {[%emt 00:17:05]} 14. Qxb4 {[%clk 00:42:22]} {[%emt
00:12:45]} Nxb4 {[%clk 00:45:03]} {[%emt 00:00:07]} 15. Na4 {[%clk 00:39:50]}
{[%emt 00:03:02]} a5 {[%clk 00:29:42]} {[%emt 00:15:51]} 16. Nc5 {[%clk
00:36:52]} {[%emt 00:03:28]} Bxa2 {[%clk 00:23:44]} {[%emt 00:06:28]} 17. Nxb7
{[%clk 00:36:34]} {[%emt 00:00:47]} Rdb8 {[%clk 00:23:29]} {[%emt 00:00:45]} 18.
Nc5 {[%clk 00:24:32]} {[%emt 00:12:33]} Bd5 {[%clk 00:12:54]} {[%emt 00:11:04]}
19. Rfc1 {[%clk 00:23:19]} {[%emt 00:01:43]} Na2 {[%clk 00:08:26]} {[%emt
00:04:59]} 20. Rc2 {[%clk 00:22:42]} {[%emt 00:01:07]} e6 {[%clk 00:07:25]}
{[%emt 00:01:31]} 21. Ne5 {[%clk 00:15:15]} {[%emt 00:07:57]} Nb4 {[%clk
00:06:25]} {[%emt 00:01:30]} 22. Bxb4 {[%clk 00:06:50]} {[%emt 00:08:55]} axb4
{[%clk 00:06:35]} {[%emt 00:00:20]} 23. Rxa8 {[%clk 00:06:33]} {[%emt
00:00:47]} Rxa8 {[%clk 00:07:04]} {[%emt 00:00:02]} 24. Bxd5 {[%clk 00:06:24]}
{[%emt 00:00:39]} cxd5 {[%clk 00:06:23]} {[%emt 00:01:11]} 25. Ncd3 {[%clk
00:05:45]} {[%emt 00:01:08]} Bd6 {[%clk 00:05:19]} {[%emt 00:01:34]} 26. Rc6
{[%clk 00:05:25]} {[%emt 00:00:50]} Bxe5 {[%clk 00:02:47]} {[%emt 00:03:02]} 27.
Nxe5 {[%clk 00:05:27]} {[%emt 00:00:27]} Ne4 {[%clk 00:01:59]} {[%emt
00:01:18]} 28. Nd3 {[%clk 00:03:46]} {[%emt 00:02:11]} Ra1+ {[%clk 00:01:50]}
{[%emt 00:00:40]} 29. Kg2 {[%clk 00:04:04]} {[%emt 00:00:11]} b3 {[%clk
00:01:24]} {[%emt 00:00:56]} 30. Rc1 {[%clk 00:02:39]} {[%emt 00:01:54]} Ra2
{[%clk 00:00:49]} {[%emt 00:01:07]} 31. Rc8+ {[%emt 00:03:56]} Kg7 32. Rb8 Nd2
{[%emt 00:00:02]} 33. Rb7 Ra1 {[%emt 00:00:23]} 34. Ne5 {[%emt 00:00:05]} Rb1
{[%emt 00:00:02]} 35. Rxf7+ {[%emt 00:00:03]} Kg8 1/2-1/2

[Event "18èmeFestival International d’Echecsde Rochefort"]
[Site "Rochefort, France"]
[Date "2019.02.17"]
[Round "3.1"]
[White "ZENG, Chongsheng"]
[Black "HARUTYUNYAN, Ruben"]
[Result "1-0"]
[TimeControl "1h30 min/40coups + 30 min +  30sec/coup"]
[WhiteTitle "GM"]
[BlackTitle "FM"]
[WhiteFideId "8603847"]
[BlackFideId "26042410"]
[WhiteElo "2544"]
[BlackElo "2299"]

1. e4 {[%clk 01:20:44]} {[%emt 00:10:11]} c5 {[%clk 01:30:58]} {[%emt
00:00:07]} 2. Nf3 {[%clk 01:21:06]} {[%emt 00:00:08]} Nc6 {[%clk 01:31:26]}
{[%emt 00:00:03]} 3. d4 {[%clk 01:21:24]} {[%emt 00:00:12]} cxd4 {[%clk
01:31:52]} {[%emt 00:00:04]} 4. Nxd4 {[%clk 01:21:46]} {[%emt 00:00:07]} Nf6
{[%clk 01:32:19]} {[%emt 00:00:03]} 5. Nc3 {[%clk 01:22:11]} {[%emt 00:00:05]}
d6 {[%clk 01:32:47]} {[%emt 00:00:02]} 6. Bg5 {[%clk 01:22:21]} {[%emt
00:00:20]} e6 {[%clk 01:33:13]} {[%emt 00:00:04]} 7. Qd2 {[%clk 01:22:47]}
{[%emt 00:00:05]} a6 {[%clk 01:33:40]} {[%emt 00:00:03]} 8. O-O-O {[%clk
01:23:07]} {[%emt 00:00:09]} Bd7 {[%clk 01:34:08]} {[%emt 00:00:03]} 9. f4
{[%clk 01:23:26]} {[%emt 00:00:10]} b5 {[%clk 01:34:32]} {[%emt 00:00:06]} 10.
Bxf6 {[%clk 01:23:45]} {[%emt 00:00:12]} gxf6 {[%clk 01:34:58]} {[%emt
00:00:04]} 11. Kb1 {[%clk 01:24:09]} {[%emt 00:00:05]} Qb6 {[%clk 01:35:20]}
{[%emt 00:00:08]} 12. Nxc6 {[%clk 01:24:33]} {[%emt 00:00:06]} Bxc6 {[%clk
01:35:48]} {[%emt 00:00:03]} 13. f5 {[%clk 01:24:52]} {[%emt 00:00:11]} b4
{[%clk 01:35:23]} {[%emt 00:00:55]} 14. Ne2 {[%clk 01:25:17]} {[%emt 00:00:05]}
e5 {[%clk 01:35:41]} {[%emt 00:00:12]} 15. Ng3 {[%clk 01:22:12]} {[%emt
00:03:34]} Qc5 {[%clk 01:36:06]} {[%emt 00:00:06]} 16. Nh5 {[%clk 01:13:25]}
{[%emt 00:09:16]} Ke7 {[%clk 01:34:58]} {[%emt 00:01:39]} 17. g4 {[%clk
01:13:53]} {[%emt 00:00:02]} Rg8 {[%clk 01:17:55]} {[%emt 00:17:34]} 18. h3
{[%clk 01:14:16]} {[%emt 00:00:07]} Rg5 {[%clk 01:09:56]} {[%emt 00:08:29]} 19.
Qe2 {[%clk 01:01:53]} {[%emt 00:12:53]} Rg8 {[%clk 01:00:05]} {[%emt 00:10:21]}
20. h4 {[%clk 01:00:52]} {[%emt 00:01:30]} a5 {[%clk 00:36:09]} {[%emt
00:24:28]} 21. Rh3 {[%clk 00:59:16]} {[%emt 00:02:06]} a4 {[%clk 00:34:18]}
{[%emt 00:02:21]} 22. c4 {[%clk 00:57:40]} {[%emt 00:02:05]} Bh6 {[%clk
00:26:51]} {[%emt 00:07:57]} 23. Qf3 {[%clk 00:49:55]} {[%emt 00:08:15]} Bf4
{[%clk 00:23:11]} {[%emt 00:04:10]} 24. Be2 {[%clk 00:48:44]} {[%emt 00:01:42]}
a3 {[%clk 00:23:04]} {[%emt 00:00:37]} 25. Nxf4 {[%clk 00:40:25]} {[%emt
00:08:48]} exf4 {[%clk 00:23:24]} {[%emt 00:00:10]} 26. Qxf4 {[%clk 00:40:33]}
{[%emt 00:00:22]} axb2 {[%clk 00:17:58]} {[%emt 00:05:56]} 27. g5 {[%clk
00:39:19]} {[%emt 00:01:44]} fxg5 {[%clk 00:07:41]} {[%emt 00:10:47]} 28. hxg5
{[%clk 00:39:13]} {[%emt 00:00:35]} Ra3 {[%clk 00:02:19]} {[%emt 00:05:53]} 29.
f6+ {[%clk 00:32:21]} {[%emt 00:07:22]} Ke8 {[%clk 00:01:48]} {[%emt 00:01:00]}
30. Rxd6 {[%clk 00:27:59]} {[%emt 00:04:52]} Qxg5 {[%clk 00:00:46]} {[%emt
00:01:33]} 31. Re6+ {[%clk 00:17:51]} {[%emt 00:10:39]} fxe6 {[%clk 00:01:05]}
{[%emt 00:00:11]} 32. f7+ {[%clk 00:18:19]} {[%emt 00:00:01]} Kd7 {[%clk
00:00:48]} {[%emt 00:00:47]} 33. Qxg5 {[%clk 00:14:26]} {[%emt 00:04:23]} Rxg5
{[%clk 00:01:11]} {[%emt 00:00:07]} 34. f8=Q {[%clk 00:14:41]} {[%emt
00:00:15]} Rxh3 {[%clk 00:00:37]} {[%emt 00:01:04]} 35. c5 {[%clk 00:12:24]}
{[%emt 00:02:48]} Bxe4+ {[%clk 00:00:38]} {[%emt 00:00:29]} 36. Kxb2 {[%clk
00:12:53]} {[%emt 00:00:01]} Rg2 {[%clk 00:00:33]} {[%emt 00:00:35]} 37. Qd6+
{[%clk 00:12:32]} {[%emt 00:00:51]} Kc8 {[%clk 00:00:42]} {[%emt 00:00:21]} 38.
Qxe6+ {[%clk 00:12:36]} {[%emt 00:00:26]} Kc7 {[%clk 00:01:05]} {[%emt
00:00:06]} 39. Qxh3 {[%clk 00:09:27]} {[%emt 00:03:39]} Rxe2+ {[%clk 00:01:31]}
{[%emt 00:00:04]} 40. Kb3 {[%clk 00:09:54]} {[%emt 00:00:03]} Bd5+ {[%clk
00:00:40]} {[%emt 00:01:21]} 41. Kxb4 {[%clk 00:10:15]} {[%emt 00:00:10]} Rb2+
{[%clk 00:12:03]} {[%emt 00:19:07]} 42. Kc3 {[%clk 00:40:34]} {[%emt 00:00:10]}
Rxa2 {[%clk 00:12:30]} {[%emt 00:00:04]} 43. Qh6 {[%clk 00:39:04]} {[%emt
00:01:59]} Bc6 {[%clk 00:08:21]} {[%emt 00:04:39]} 44. Qf4+ {[%clk 00:39:11]}
{[%emt 00:00:23]} 1-0



[ePGN "0.1;DGT LiveChess/2.2.3"]